bitfinex/quotes_SOLUSD_20250901
["timestamp","ask_amount","ask_price","bid_price","bid_amount"]
[1756714093933,89.02062102,203.91,203.9,0.12]
[1756714094323,63.02062102,203.91,203.9,0.12]
[1756714095032,63.14062102,203.91,203.9,0.12]
[1756714095445,57.41775558,203.91,203.9,0.12]
[1756714095651,63.14062102,203.91,203.9,0.12]
[1756714095832,57.39775558,203.91,203.9,0.12]
[1756714096241,63.12062102,203.91,203.9,0.12]
[1756714096641,89.12062102,203.91,203.9,0.12]
[1756714096936,94.02474538,203.91,203.9,0.12]
[1756714097458,89.12062102,203.91,203.9,0.12]
[1756714097855,94.02474538,203.91,203.9,0.12]
[1756714098244,68.02474538,203.91,203.9,0.12]
[1756714098747,103.36474538,203.91,203.9,0.12]
[1756714099960,98.38062102,203.91,203.9,0.12]
[1756714100144,124.38062102,203.91,203.9,0.12]
[1756714100545,80.65845945,203.91,203.9,0.12]
[1756714100746,124.23845945,203.91,203.9,0.12]
[1756714101062,98.38062102,203.91,203.9,0.12]
[1756714101263,103.28474538,203.91,203.9,0.12]
[1756714101443,54.80062102,203.91,203.9,0.12]
[1756714101640,98.38062102,203.91,203.9,0.12]
[1756714102059,124.23845945,203.91,203.9,0.12]
[1756714102441,98.23845945,203.91,203.9,0.12]
[1756714102639,124.38062102,203.91,203.9,0.12]
[1756714102859,48.93559401,203.91,203.9,0.12]
[1756714103031,92.51559401,203.91,203.9,0.12]
[1756714103233,98.23845945,203.91,203.9,0.12]
[1756714103445,92.65775558,203.91,203.9,0.12]
[1756714103656,98.38062102,203.91,203.9,0.12]
[1756714103858,124.38062102,203.91,203.9,0.12]
[1756714104062,103.28474538,203.91,203.9,0.12]
[1756714105866,98.38062102,203.91,203.9,0.12]
[1756714106065,54.80062102,203.91,203.9,0.12]
[1756714106365,103.28474538,203.91,203.9,0.12]
[1756714106864,124.38062102,203.91,203.9,0.12]
[1756714107260,103.28474538,203.91,203.9,0.12]
[1756714108964,54.80062102,203.91,203.9,0.12]
[1756714109163,103.28474538,203.91,203.9,0.12]
[1756714109357,98.38062102,203.91,203.9,0.12]
[1756714109567,48.93559401,203.91,203.9,0.12]
[1756714109752,124.23845945,203.91,203.9,0.12]
[1756714109952,122.47317707,203.91,203.9,0.12]
[1756714110157,122.3310155,203.91,203.9,0.12]
[1756714110359,96.47317707,203.91,203.9,0.12]
[1756714112178,92.65775558,203.91,203.9,0.12]
[1756714112677,35.34,203.91,203.9,0.12]
[1756714112881,78.92,203.91,203.9,0.12]
[1756714113260,78.92,203.91,203.9,3.93542149]
[1756714113461,78.92,203.91,203.9,0.12]
[1756714114354,78.92,203.91,203.9,5.02436488]
[1756714114577,96.3310155,203.91,203.9,0.12]
[1756714114781,96.47317707,203.91,203.9,0.12]
[1756714115385,101.37730143,203.91,203.9,0.12]
[1756714116801,0.14216157,203.9,203.87,0.12]
[1756714116959,28.48775558,203.86,203.85,0.12]
[1756714117178,13.59559401,203.78,203.72,3.81542149]
[1756714117396,43.56,203.77,203.73,3.81542149]
[1756714117595,47.37542149,203.77,203.71,3.81542149]
[1756714117767,17.4110155,203.76,203.7,3.81542149]
[1756714117968,43.56,203.75,203.7,5.76620805]
[1756714118387,49.32620805,203.75,203.69,5.76620805]
[1756714118770,49.32620805,203.75,203.62,17.18888124]
[1756714118974,49.32620805,203.75,203.7,5.76620805]
[1756714119185,49.32620805,203.75,203.7,10.67538153]
[1756714119485,49.32620805,203.75,203.69,10.67559314]
[1756714119786,5.76620805,203.73,203.66,4.91014435]
[1756714120088,43.56,203.74,203.63,4.91086775]
[1756714120089,5.76620805,203.7,203.63,4.91086775]
[1756714120262,43.58,203.69,203.65,5.76620805]
[1756714120463,43.58,203.69,203.63,4.91086775]
[1756714120685,43.58,203.69,203.65,5.76620805]
[1756714120892,43.56,203.68,203.65,5.76620805]
[1756714121184,5.76620805,203.71,203.66,4.91014435]
[1756714121394,43.56,203.7,203.67,5.76620805]
[1756714121599,14.75,203.88,203.69,5.76620805]
[1756714121807,13.59559401,203.77,203.66,4.91014435]
[1756714121965,43.56,203.76,203.66,17.18550524]
[1756714122168,43.56,203.76,203.71,5.76620805]
[1756714122802,43.56,203.75,203.71,5.76620805]
[1756714122970,43.56,203.74,203.71,5.76620805]
[1756714123171,43.56,203.73,203.71,5.76620805]
[1756714123375,35.34,203.91,203.72,10.67490626]
[1756714123705,13.59559401,203.83,203.78,5.76620805]
[1756714124001,49.32620805,203.82,203.72,4.90869821]
[1756714124179,5.76620805,203.81,203.76,5.76620805]
[1756714124375,19.36180206,203.8,203.72,4.90869821]
[1756714124591,5.76620805,203.78,203.73,5.76620805]
[1756714124804,5.76620805,203.78,203.72,10.67490626]
[1756714124982,5.76620805,203.78,203.72,4.90869821]
[1756714125295,5.76620805,203.78,203.73,10.67456066]
[1756714125494,5.76620805,203.77,203.69,4.90942117]
[1756714125807,43.56,203.76,203.72,5.76620805]
[1756714126110,12.481783,203.89,203.75,5.76620805]
[1756714126275,13.59559401,203.82,203.71,5.76620805]
[1756714126480,43.56,203.81,203.77,5.76620805]
[1756714126783,43.56,203.81,203.69,17.18297411]
[1756714127006,43.56,203.81,203.77,5.76620805]
[1756714127168,13.59559401,203.8,203.69,17.18297411]
[1756714127500,5.76620805,203.78,203.73,5.76620805]
[1756714127796,43.56,203.77,203.74,5.76620805]
[1756714127971,43.56,203.77,203.69,12.27355294]
[1756714128292,43.56,203.77,203.71,5.76620805]
[1756714128293,49.32620805,203.77,203.71,5.76620805]
[1756714128493,13.59559401,203.76,203.68,4.90966221]
[1756714128700,12.481783,203.89,203.75,5.76620805]
[1756714129015,13.59559401,203.83,203.78,5.76620805]
[1756714129217,43.56,203.82,203.78,5.76620805]
[1756714129506,43.56,203.82,203.79,4.90701212]
[1756714129715,5.76620805,203.86,203.81,5.76620805]
[1756714130006,62.92180206,203.85,203.79,10.67322017]
[1756714130203,43.56,203.84,203.79,10.67322017]
[1756714130570,43.56,203.84,203.79,4.90701212]
[1756714130787,43.56,203.84,203.74,5.76620805]
[1756714130788,19.36180206,203.8,203.74,5.76620805]
[1756714130994,49.30620805,203.79,203.74,5.76620805]
[1756714131783,49.30620805,203.79,203.75,4.90797546]
[1756714131986,13.59559401,203.85,203.77,5.76620805]
[1756714132188,19.36180206,203.83,203.77,5.76620805]
[1756714133000,13.59559401,203.83,203.78,5.76620805]
[1756714133300,43.54,203.82,203.8,5.76620805]
[1756714133471,43.54,203.82,203.79,5.76620805]
[1756714133668,49.30620805,203.82,203.72,4.90869821]
[1756714133882,13.59559401,203.81,203.71,12.27201662]
[1756714134170,13.59559401,203.81,203.75,5.76620805]
[1756714134375,5.76620805,203.77,203.65,12.27594183]
[1756714134680,43.54,203.76,203.71,5.76620805]
[1756714134890,13.59559401,203.81,203.72,5.76620805]
[1756714135097,5.76620805,203.79,203.65,43.18634912]
[1756714135300,5.76620805,203.74,203.65,17.18634912]
[1756714135598,43.54,203.73,203.68,5.76620805]
[1756714135786,43.54,203.73,203.69,5.02929357]
[1756714135977,43.54,203.73,203.69,0.12]
[1756714136180,43.54,203.73,203.69,5.88620805]
[1756714136381,43.54,203.73,203.69,10.79560164]
[1756714136576,43.54,203.73,203.69,0.12]
[1756714136875,5.76620805,203.71,203.69,0.12]
[1756714137295,19.36180206,203.72,203.69,0.12]
[1756714137984,17.41835832,203.72,203.69,0.12]
[1756714138189,13.59559401,203.72,203.69,0.12]
[1756714138770,43.52,203.71,203.69,0.12]
[1756714139598,13.59559401,203.72,203.69,0.12]
[1756714139801,43.52,203.71,203.69,0.12]
[1756714140371,47.34276431,203.71,203.69,0.12]
[1756714140696,3.82276431,203.7,203.69,0.12]
[1756714141197,43.52,203.71,203.69,0.12]
[1756714141399,17.41835832,203.7,203.69,0.12]
[1756714141783,3.82276431,203.7,203.69,0.12]
[1756714141996,43.52,203.7,203.69,0.12]
[1756714142215,13.59559401,203.74,203.69,8.85208059]
[1756714142617,4.9397,203.85,203.71,3.82276431]
[1756714142909,3.82276431,203.8,203.74,3.82276431]
[1756714143215,43.5,203.79,203.69,17.30286922]
[1756714143416,3.82276431,203.8,203.74,3.82276431]
[1756714143612,43.5,203.79,203.77,3.82276431]
[1756714143816,0.03,203.85,203.78,3.82276431]
[1756714144020,0.03,203.85,203.72,3.82276431]
[1756714144021,0.03,203.85,203.83,3.82276431]
[1756714144208,43.5,203.84,203.82,3.82276431]
[1756714144404,43.5,203.84,203.81,3.82276431]
[1756714144711,43.5,203.84,203.8,3.82276431]
[1756714145017,43.5,203.84,203.83,3.82276431]
[1756714145316,43.5,203.84,203.82,3.82276431]
[1756714145525,0.03,203.85,203.83,3.82276431]
[1756714145722,0.03,203.85,203.84,3.82276431]
[1756714145950,43.53,203.85,203.82,3.82276431]
[1756714146087,43.53,203.85,203.76,4.90773458]
[1756714146303,43.53,203.85,203.8,5.75915697]
[1756714146694,43.53,203.85,203.76,17.17707105]
[1756714147026,43.53,203.85,203.73,26.0]
[1756714147027,5.75915697,203.81,203.73,4.90845727]
[1756714147198,49.23915697,203.8,203.74,5.75915697]
[1756714147405,43.48,203.79,203.74,5.75915697]
[1756714147926,43.48,203.79,203.75,4.90797546]
[1756714148125,43.48,203.79,203.75,10.66713243]
[1756714148499,43.48,203.79,203.69,12.39342997]
[1756714148500,49.23915697,203.79,203.7,4.90918016]
[1756714148710,49.23915697,203.79,203.7,17.18213057]
[1756714148906,49.23915697,203.79,203.74,5.75915697]
[1756714149595,43.48,203.79,203.7,17.18213057]
[1756714150010,43.48,203.79,203.74,5.75915697]
[1756714150011,49.23915697,203.79,203.74,5.75915697]
[1756714150210,49.23915697,203.79,203.73,5.75915697]
[1756714150542,43.48,203.79,203.74,5.75915697]
[1756714150852,0.03,203.85,203.78,5.75915697]
[1756714151052,0.03,203.85,203.72,26.0]
[1756714151053,0.03,203.85,203.84,5.75915697]
[1756714151211,43.49,203.85,203.84,5.75915697]
[1756714152010,0.03,203.85,203.84,10.66496544]
[1756714152416,12.481783,203.89,203.84,10.66496544]
[1756714152417,12.481783,203.89,203.84,28.6886436]
[1756714152719,12.481783,203.89,203.88,5.75915697]
[1756714153313,12.481783,203.89,203.84,4.90580847]
[1756714153520,18.24093997,203.89,203.81,30.90653059]
[1756714153712,18.24093997,203.89,203.84,5.75915697]
[1756714153938,18.24093997,203.89,203.81,5.75915697]
[1756714153939,5.75915697,203.87,203.81,5.75915697]
[1756714154112,5.75915697,203.85,203.79,5.75915697]
[1756714154310,5.75915697,203.85,203.72,43.18044374]
[1756714154637,5.75915697,203.85,203.72,17.18044374]
[1756714154816,5.75915697,203.85,203.79,5.75915697]
[1756714155130,5.75915697,203.84,203.72,17.18044374]
[1756714155337,5.75915697,203.81,203.75,5.75915697]
[1756714155515,43.44,203.8,203.75,5.75915697]
[1756714155835,19.35475098,203.88,203.79,5.75915697]
[1756714156037,43.44,203.87,203.83,10.66496734]
[1756714156237,43.44,203.86,203.83,4.90581037]
[1756714156733,43.44,203.86,203.85,5.75915697]
[1756714156927,12.481783,203.89,203.85,5.75915697]
[1756714157123,43.42,203.88,203.83,4.90581037]
[1756714157323,43.42,203.88,203.84,5.75915697]
[1756714157636,43.42,203.88,203.86,5.75915697]
[1756714157813,43.42,203.88,203.85,5.75915697]
[1756714158525,43.42,203.88,203.77,12.26858276]
[1756714158726,49.17915697,203.88,203.82,5.75915697]
[1756714159030,13.59559401,203.83,203.78,5.75915697]
[1756714159227,13.59559401,203.88,203.82,5.75915697]
[1756714159415,43.42,203.87,203.85,5.75915697]
[1756714159621,43.42,203.87,203.82,5.75915697]
[1756714159823,43.42,203.87,203.83,5.75915697]
[1756714160230,43.42,203.87,203.85,5.75915697]
[1756714160423,43.42,203.87,203.83,5.75915697]
[1756714160821,43.42,203.87,203.84,5.75915697]
[1756714161033,43.42,203.87,203.79,4.90701212]
[1756714161034,43.4,203.86,203.79,4.90701212]
[1756714161342,43.4,203.86,203.8,5.75915697]
[1756714161343,43.4,203.85,203.8,5.75915697]
[1756714161519,49.15915697,203.85,203.79,10.66616909]
[1756714161715,19.35475098,203.84,203.76,4.90773458]
[1756714161915,19.35475098,203.84,203.78,5.75915697]
[1756714162116,13.59559401,203.84,203.78,5.75915697]
[1756714162330,13.59559401,203.88,203.83,5.75915697]
[1756714162537,43.4,203.87,203.85,5.75915697]
[1756714163134,43.4,203.87,203.77,17.17622809]
[1756714163457,43.4,203.87,203.82,5.75915697]
[1756714164339,19.35475098,203.86,203.77,4.90749374]
[1756714164526,5.75915697,203.85,203.79,5.75915697]
[1756714164932,13.59559401,203.86,203.78,5.75915697]
[1756714165164,5.75915697,203.84,203.78,5.75915697]
[1756714165432,43.38,203.83,203.78,5.75915697]
[1756714165819,49.13915697,203.83,203.77,5.75915697]
[1756714166436,13.59559401,203.81,203.72,5.75915697]
[1756714166639,13.59559401,203.77,203.72,5.75915697]
[1756714166828,49.13915697,203.76,203.7,10.66833066]
[1756714167149,49.13915697,203.76,203.71,5.75915697]
[1756714167150,13.59559401,203.75,203.71,5.75915697]
[1756714167330,43.38,203.74,203.69,5.02934407]
[1756714167530,0.14216157,203.79,203.73,5.75915697]
[1756714167738,13.59559401,203.77,203.69,31.02934407]
[1756714167935,5.90131854,203.81,203.75,5.75915697]
[1756714168133,56.97559401,203.8,203.76,5.75915697]
[1756714168331,43.38,203.79,203.76,5.75915697]
[1756714168525,13.73775558,203.86,203.78,5.75915697]
[1756714168730,13.73775558,203.83,203.79,5.75915697]
[1756714168940,13.73775558,203.83,203.78,5.75915697]
[1756714169132,13.59559401,203.81,203.79,5.75915697]
[1756714169651,13.59559401,203.79,203.7,4.90918016]
[1756714169860,13.59559401,203.77,203.73,5.75915697]
[1756714170354,19.35475098,203.77,203.71,5.75915697]
[1756714170560,13.59559401,203.77,203.72,10.66763647]
[1756714171049,43.36,203.76,203.73,5.75915697]
[1756714171351,43.36,203.75,203.73,5.75915697]
[1756714171565,43.36,203.74,203.73,5.75915697]
[1756714171925,13.59559401,203.77,203.73,5.75915697]
[1756714172134,43.36,203.76,203.74,0.12]
[1756714172340,43.36,203.75,203.74,0.12]
[1756714172650,13.59559401,203.78,203.74,5.02798993]
[1756714172858,43.36,203.77,203.74,5.02798993]
[1756714173163,43.36,203.77,203.74,10.7871469]
[1756714173647,19.35475098,203.83,203.76,5.75915697]
[1756714173969,0.14216157,203.8,203.74,0.12]
[1756714174258,13.59559401,203.78,203.74,5.02813704]
[1756714174438,47.15905867,203.77,203.74,5.02813704]
[1756714174645,43.34,203.77,203.74,0.12]
[1756714175063,47.15905867,203.77,203.74,0.12]
[1756714175253,43.34,203.77,203.74,0.12]
[1756714175444,3.81905867,203.75,203.74,0.12]
[1756714175637,17.55681425,203.75,203.74,0.12]
[1756714177068,60.89681425,203.75,203.74,0.12]
[1756714177841,57.07775558,203.75,203.74,0.12]
[1756714178042,60.89681425,203.75,203.74,0.12]
[1756714178630,56.93559401,203.75,203.74,0.12]
[1756714180354,43.32,203.75,203.74,0.12]
[1756714180559,57.05775558,203.75,203.74,0.12]
[1756714180785,60.87681425,203.75,203.74,0.12]
[1756714182660,57.05775558,203.75,203.74,0.12]
[1756714182860,60.87681425,203.75,203.74,0.12]
[1756714184282,56.89559401,203.75,203.74,0.12]
[1756714185364,56.89559401,203.75,203.74,5.02821635]
[1756714185565,12.481783,203.89,203.74,8.84727502]
[1756714185566,50.11,203.87,203.74,8.84727502]
[1756714185769,3.81905867,203.85,203.79,3.81905867]
[1756714185975,43.3,203.84,203.79,3.81905867]
[1756714186176,13.59559401,203.83,203.79,3.81905867]
[1756714186368,13.59559401,203.83,203.78,3.81905867]
[1756714186778,17.41465268,203.81,203.74,0.12]
[1756714186960,43.3,203.8,203.74,0.12]
[1756714187163,43.3,203.8,203.76,3.81905867]
[1756714188184,43.3,203.8,203.74,5.02816543]
[1756714188185,13.59559401,203.79,203.74,5.02816543]
[1756714188392,17.41465268,203.79,203.74,5.02816543]
[1756714188603,0.14216157,203.78,203.74,5.02816543]
[1756714188805,13.59559401,203.76,203.74,8.8472241]
[1756714189103,13.59559401,203.78,203.74,0.12]
[1756714189315,13.59559401,203.76,203.74,0.12]
[1756714189716,43.28,203.77,203.74,3.93905867]
[1756714189874,43.28,203.77,203.74,8.84726517]
[1756714190287,43.28,203.77,203.74,5.0282065]
[1756714190498,43.28,203.77,203.74,8.84726517]
[1756714190691,13.59559401,203.79,203.74,5.0282065]
[1756714190884,43.28,203.78,203.74,8.84726517]
[1756714191090,43.28,203.78,203.76,0.12]
[1756714191411,43.26,203.77,203.76,0.12]
[1756714192575,56.85559401,203.77,203.76,0.12]
[1756714193272,60.67465268,203.77,203.76,0.12]
[1756714193675,56.85559401,203.77,203.76,0.12]
[1756714193990,56.99775558,203.77,203.76,0.12]
[1756714194188,60.81681425,203.77,203.76,0.12]
[1756714194584,86.81681425,203.77,203.76,0.12]
[1756714195380,91.72430799,203.77,203.76,0.12]
[1756714195587,63.21430799,203.77,203.76,0.12]
[1756714195788,106.45430799,203.77,203.76,0.12]
[1756714196486,63.21430799,203.77,203.76,0.12]
[1756714196683,106.45430799,203.77,203.76,0.12]
[1756714197099,80.45430799,203.77,203.76,0.12]
[1756714197807,65.70430799,203.77,203.76,0.12]
[1756714198322,13.73775558,203.77,203.76,0.12]
[1756714198479,17.55681425,203.77,203.76,0.12]
[1756714198677,86.77681425,203.77,203.76,0.12]
[1756714198885,91.68430799,203.77,203.76,0.12]
[1756714199113,87.86524932,203.77,203.76,0.12]
[1756714199275,91.68430799,203.77,203.76,0.12]
[1756714199788,65.68430799,203.77,203.76,0.12]
[1756714200604,17.55681425,203.77,203.76,0.12]
[1756714200782,65.68430799,203.77,203.76,0.12]
[1756714201537,65.68430799,203.77,203.74,0.12]
[1756714201538,26.0,203.75,203.74,0.12]
[1756714201700,13.59559401,203.63,203.57,3.81905867]
[1756714201899,13.59559401,203.61,203.49,29.4854784]
[1756714202194,43.2,203.6,203.5,3.81905867]
[1756714202408,0.14216157,203.67,203.59,3.81905867]
[1756714202722,13.59559401,203.65,203.6,3.81905867]
[1756714202884,13.59559401,203.63,203.5,3.81905867]
[1756714203089,43.2,203.62,203.59,3.81905867]
[1756714203300,0.14216157,203.67,203.59,4.91177609]
[1756714203610,44.71559401,203.66,203.59,4.91177609]
[1756714203808,0.14216157,203.67,203.62,3.81905867]
[1756714204022,13.59559401,203.65,203.59,43.1913576]
[1756714204183,43.2,203.66,203.59,43.1913576]
[1756714204384,13.59559401,203.73,203.59,43.1913576]
[1756714204707,21.24,203.72,203.59,43.1913576]
[1756714205013,13.59559401,203.7,203.59,43.1913576]
[1756714205220,2.56288755,203.84,203.69,3.81905867]
[1756714205423,4.90582724,203.84,203.74,3.81905867]
[1756714205586,3.81905867,203.8,203.74,3.81905867]
[1756714205919,35.36,203.87,203.66,26.0]
[1756714206094,3.81905867,203.8,203.74,3.81905867]
[1756714206409,3.81905867,203.77,203.71,3.81905867]
[1756714206590,13.59559401,203.75,203.71,3.81905867]
[1756714206985,13.59559401,203.75,203.64,26.0]
[1756714207185,17.41465268,203.75,203.69,3.81905867]
[1756714207404,13.59559401,203.75,203.71,3.81905867]
[1756714207583,13.59559401,203.73,203.7,3.81905867]
[1756714207788,56.77559401,203.72,203.71,3.81905867]
[1756714207992,56.77559401,203.72,203.62,17.18888124]
[1756714208285,13.59559401,203.71,203.68,3.81905867]
[1756714208686,43.18,203.7,203.68,3.81905867]
[1756714209511,13.59559401,203.69,203.67,3.81905867]
[1756714209713,13.59559401,203.72,203.68,3.81905867]
[1756714209925,13.59559401,203.7,203.68,3.81905867]
[1756714210130,3.81905867,203.74,203.68,3.81905867]
[1756714210309,3.81905867,203.74,203.66,4.91009755]
[1756714210310,13.59559401,203.79,203.71,3.81905867]
[1756714210634,0.14216157,203.76,203.69,26.0]
[1756714210925,0.14216157,203.76,203.72,3.81905867]
[1756714211128,0.14216157,203.76,203.71,3.81905867]
[1756714211716,0.14216157,203.76,203.71,4.90883163]
[1756714211927,26.0,203.81,203.75,3.81905867]
[1756714211928,13.59559401,203.8,203.75,3.81905867]
[1756714212110,43.16,203.79,203.75,3.81905867]
[1756714212612,13.59559401,203.77,203.71,17.18117957]
[1756714212809,13.59559401,203.77,203.74,3.81905867]
[1756714213199,43.14,203.76,203.74,3.81905867]
[1756714213402,13.59559401,203.79,203.75,3.81905867]
[1756714213630,56.73559401,203.78,203.77,3.81905867]
[1756714215030,0.03,203.85,203.77,3.81905867]
[1756714215201,13.59559401,203.83,203.8,3.81905867]
[1756714215398,13.59559401,203.83,203.78,3.81905867]
[1756714215640,3.81905867,203.82,203.74,26.0]
[1756714215839,13.59559401,203.8,203.74,26.0]
[1756714216001,3.81905867,203.81,203.75,3.81905867]
[1756714216002,13.59559401,203.78,203.75,3.81905867]
[1756714216204,13.59559401,203.78,203.75,29.81905867]
[1756714216431,13.59559401,203.78,203.75,3.81905867]
[1756714216808,43.12,203.77,203.75,3.81905867]
[1756714217225,43.12,203.77,203.76,3.81905867]
[1756714217422,13.59559401,203.76,203.73,26.0]
[1756714217630,13.59559401,203.76,203.73,30.9084255]
[1756714217843,43.12,203.77,203.73,30.9084255]
[1756714218427,13.73775558,203.84,203.73,30.9084255]
[1756714218622,13.73775558,203.82,203.79,3.81905867]
[1756714219135,43.1,203.81,203.73,43.17956867]
[1756714219338,0.03,203.85,203.8,3.81905867]
[1756714219544,0.17216157,203.85,203.81,3.81905867]
[1756714219711,13.59559401,203.83,203.79,4.90677324]
[1756714219913,11.59559401,203.83,203.81,3.81905867]
[1756714220107,0.03,203.85,203.82,29.81905867]
[1756714220332,43.13,203.85,203.84,3.81905867]
[1756714220536,0.03,203.85,203.84,3.81905867]
[1756714220724,43.13,203.85,203.84,3.81905867]
[1756714221422,43.13,203.85,203.84,8.72486714]
[1756714221624,0.03,203.85,203.84,8.72486714]
[1756714221933,43.08,203.86,203.84,9.87396741]
[1756714222134,0.03,203.88,203.85,3.81905867]
[1756714222318,0.03,203.92,203.87,29.81905867]
[1756714222519,43.11,203.92,203.9,29.81905867]
[1756714223122,43.11,203.92,203.9,3.81905867]
[1756714223640,43.11,203.92,203.87,4.90506339]
[1756714223938,43.11,203.92,203.9,3.81905867]
[1756714224239,13.62559401,203.91,203.87,3.81905867]
[1756714224440,13.62559401,203.91,203.81,26.0]
[1756714224746,13.62559401,203.91,203.87,3.81905867]
[1756714225047,13.62559401,203.91,203.88,3.81905867]
[1756714225349,0.14216157,203.9,203.82,4.90628986]
[1756714225931,0.14216157,203.9,203.79,4.90701212]
[1756714226130,13.73775558,203.88,203.84,3.81905867]
[1756714226331,43.04,203.87,203.85,3.81905867]
[1756714226516,0.17216157,203.91,203.86,3.81905867]
[1756714226729,43.04,203.9,203.87,3.81905867]
[1756714227237,0.14216157,203.9,203.86,3.81905867]
[1756714227423,13.59559401,203.88,203.87,3.81905867]
[1756714227832,0.14216157,203.9,203.86,3.81905867]
[1756714228034,13.59559401,203.88,203.84,3.81905867]
[1756714228337,0.14216157,203.87,203.83,3.81905867]
[1756714228562,13.59559401,203.88,203.84,3.81905867]
[1756714228841,13.59559401,203.88,203.83,3.81905867]
[1756714229138,13.59559401,203.89,203.86,3.81905867]
[1756714229310,43.02,203.88,203.85,3.81905867]
[1756714229515,13.59559401,203.87,203.83,3.81905867]
[1756714229715,3.81905867,203.85,203.73,14.863826]
[1756714229931,3.81905867,203.84,203.73,0.12]
[1756714230135,13.59559401,203.82,203.73,0.12]
[1756714230335,13.59559401,203.82,203.78,3.81905867]
[1756714230534,13.59559401,203.82,203.73,0.12]
[1756714230923,13.59559401,203.82,203.74,4.90821635]
[1756714231125,17.41465268,203.82,203.74,4.90821635]
[1756714231322,13.59559401,203.8,203.75,3.81905867]
[1756714231546,13.59559401,203.8,203.73,0.12]
[1756714231754,3.81905867,203.82,203.77,3.81905867]
[1756714231928,13.59559401,203.82,203.78,3.81905867]
[1756714232249,13.59559401,203.82,203.77,3.81905867]
[1756714232429,13.59559401,203.82,203.78,3.81905867]
[1756714232742,43.0,203.81,203.77,3.81905867]
[1756714233154,13.59559401,203.82,203.77,3.81905867]
[1756714233155,3.96122024,203.84,203.78,3.81905867]
[1756714233448,43.0,203.8,203.78,3.81905867]
[1756714234047,43.0,203.8,203.77,3.81905867]
[1756714234434,13.59559401,203.79,203.74,3.81905867]
[1756714234622,13.59559401,203.79,203.75,3.81905867]
[1756714234938,13.59559401,203.79,203.73,5.02843636]
[1756714235119,13.59559401,203.79,203.75,3.81905867]
[1756714235317,13.59559401,203.79,203.73,5.02843636]
[1756714235318,13.59559401,203.79,203.74,3.81905867]
[1756714236442,13.59559401,203.79,203.73,0.12]
[1756714236443,13.59559401,203.79,203.75,3.81905867]
[1756714236618,13.59559401,203.79,203.74,3.81905867]
[1756714236817,0.14216157,203.78,203.73,0.12]
[1756714237022,17.41465268,203.79,203.73,0.12]
[1756714237023,13.59559401,203.79,203.74,3.81905867]
[1756714237334,0.14216157,203.78,203.73,3.93905867]
[1756714237531,0.14216157,203.78,203.73,0.12]
[1756714237744,13.59559401,203.77,203.73,0.12]
[1756714237923,3.81905867,203.79,203.73,8.84742196]
[1756714238131,42.98,203.78,203.75,3.81905867]
[1756714238529,42.98,203.77,203.73,5.02836329]
[1756714238730,42.98,203.77,203.74,3.81905867]
[1756714238932,42.98,203.77,203.75,3.81905867]
[1756714239134,42.98,203.77,203.76,3.81905867]
[1756714239749,42.98,203.77,203.73,0.12]
[1756714239951,42.98,203.77,203.73,3.93905867]
[1756714240154,13.59559401,203.79,203.75,3.81905867]
[1756714240364,42.96,203.78,203.76,3.81905867]
[1756714240654,13.73775558,203.82,203.77,3.81905867]
[1756714240961,13.59559401,203.8,203.76,3.81905867]
[1756714241455,42.96,203.79,203.78,3.81905867]
[1756714241749,42.96,203.79,203.74,17.17875723]
[1756714241750,42.96,203.79,203.77,3.81905867]
[1756714241951,42.96,203.79,203.78,3.81905867]
[1756714242728,42.96,203.79,203.74,43.17875723]
[1756714242960,42.96,203.79,203.78,3.81905867]
[1756714243655,42.96,203.79,203.75,4.90797546]
[1756714243868,42.96,203.79,203.77,3.81905867]
[1756714244362,17.41465268,203.83,203.78,29.81905867]
[1756714244363,13.59559401,203.83,203.78,29.81905867]
[1756714244654,13.59559401,203.86,203.82,3.81905867]
[1756714244961,35.36,203.87,203.85,3.81905867]
[1756714245251,35.36,203.87,203.85,8.72459402]
[1756714245455,35.36,203.87,203.85,4.90553535]
[1756714245760,42.92,203.86,203.83,3.81905867]
[1756714246256,17.41465268,203.85,203.79,3.81905867]
[1756714246431,13.59559401,203.85,203.79,3.81905867]